bitfinex/quotes_ETHUSD_20250424
["timestamp","ask_amount","ask_price","bid_price","bid_amount"]
[1745490378123,0.7832,1746.4,1745.8,3.75879172]
[1745490379305,0.7832,1746.4,1745.8,3.0]
[1745490379475,0.7832,1746.4,1745.8,3.41767558]
[1745490380182,0.7832,1746.4,1745.8,0.41767558]
[1745490380394,0.7832,1746.4,1745.7,1.17675578]
[1745490381308,0.7832,1746.4,1745.7,0.41796406]
[1745490382904,0.7832,1746.4,1745.7,1.17675578]
[1745490383813,0.7832,1746.4,1745.9,0.75879172]
[1745490384000,0.7832,1746.4,1746.0,5.72715076]
[1745490384313,0.7832,1746.4,1746.1,1.3315068]
[1745490385115,0.7832,1746.4,1746.3,0.75879172]
[1745490385310,0.7942,1747.1,1746.3,0.75879172]
[1745490385720,3.0,1747.1,1746.3,0.75879172]
[1745490385920,0.7942,1746.9,1746.3,6.48496499]
[1745490386120,0.7942,1746.9,1746.4,0.6484965]
[1745490386320,0.7942,1746.9,1746.5,0.75879172]
[1745490387063,0.7942,1746.9,1746.4,0.6484965]
[1745490387221,0.7942,1746.9,1746.4,0.75879172]
[1745490387745,0.7942,1746.9,1746.4,6.48483526]
[1745490387916,0.7942,1746.9,1746.5,0.789]
[1745490390031,0.7942,1746.9,1746.4,1.52129172]
[1745490393193,0.7942,1746.9,1746.4,7.24726426]
[1745490393485,0.7942,1746.9,1746.5,0.72472643]
[1745490394687,0.8318,1747.1,1746.5,0.72472643]
[1745490395056,0.8318,1747.1,1746.5,6.45038731]
[1745490395263,0.8318,1747.1,1746.6,0.75879172]
[1745490400209,0.8318,1747.1,1746.7,0.7627]
[1745490402120,0.8318,1747.1,1746.6,0.75879172]
[1745490402621,0.8318,1747.1,1746.5,4.50072643]
[1745490402790,0.8318,1747.1,1746.6,0.45007264]
[1745490403295,0.8318,1747.1,1746.3,0.776]
[1745490405599,0.8318,1747.1,1746.3,6.50238527]
[1745490405898,0.75879172,1747.2,1746.3,6.50238527]
[1745490405899,0.7519,1746.9,1746.3,0.776]
[1745490417097,0.7519,1746.9,1746.2,9.48528116]
[1745490417098,0.7519,1746.9,1746.2,3.75879172]
[1745490417595,0.7519,1746.9,1746.2,9.48548705]
[1745490417755,0.7519,1746.9,1746.3,0.94854871]
[1745490419316,0.7519,1746.9,1746.1,7.52620241]
[1745490419317,0.7519,1746.9,1746.1,0.57271508]
[1745490419463,0.7519,1746.9,1746.0,0.75879172]
[1745490420396,0.7519,1746.9,1746.0,6.48607235]
[1745490420597,0.7519,1746.9,1746.0,12.21326648]
[1745490420787,0.7519,1746.9,1746.0,6.48598585]
[1745490420983,0.7902,1746.7,1746.0,6.48598585]
[1745490421175,0.7902,1746.7,1746.1,0.64859859]
[1745490422300,0.7902,1746.7,1746.0,0.75879172]
[1745490425309,0.7902,1746.7,1746.2,0.75879172]
[1745490434973,0.7902,1746.7,1746.2,6.48550524]
[1745490435262,0.7902,1746.7,1746.2,0.75879172]
[1745490435655,0.7902,1746.7,1746.2,6.48550189]
[1745490435853,0.7902,1746.7,1746.3,0.64855019]
[1745490436659,0.7902,1746.7,1746.2,6.485386]
[1745490436864,0.7902,1746.7,1746.4,0.75879172]
[1745490437267,1.2,1746.8,1746.7,5.72508158]
[1745490437450,1.12127352,1747.3,1746.8,3.0]
[1745490437629,0.8225,1747.3,1746.8,5.72461086]
[1745490437835,0.8225,1747.3,1746.9,0.57246109]
[1745490438055,0.8225,1747.3,1746.9,5.7242427]
[1745490438261,0.8225,1747.3,1747.1,0.75879172]
[1745490438459,0.7987,1747.9,1747.1,6.48246653]
[1745490438659,0.7987,1747.9,1747.3,0.75879172]
[1745490439942,0.7987,1747.9,1747.3,3.75879172]
[1745490440263,0.7987,1747.9,1747.5,0.75879172]
[1745490442890,0.7987,1747.9,1747.3,4.55579172]
[1745490443054,0.7987,1747.9,1747.3,3.75879172]
[1745490443251,0.7987,1747.9,1747.4,0.37587917]
[1745490443466,0.7987,1747.9,1747.3,0.75879172]
[1745490444092,0.7987,1747.9,1747.1,1.19877099]
[1745490444894,0.7987,1747.9,1746.9,4.58929172]
[1745490445189,0.7987,1747.9,1747.1,0.75879172]
[1745490448398,0.7987,1747.9,1747.1,3.75879172]
[1745490448598,0.7987,1747.9,1747.2,0.37587917]
[1745490455007,0.7987,1747.9,1747.3,0.75879172]
[1745490456713,0.7987,1747.9,1747.2,0.37587917]
[1745490456871,0.7987,1747.9,1747.1,0.75879172]
[1745490457525,0.7987,1747.9,1746.9,0.75879172]
[1745490457709,0.75879172,1747.8,1746.9,0.75879172]
[1745490457868,0.7974,1747.7,1746.8,0.75879172]
[1745490460622,0.7794,1747.6,1746.8,0.75879172]
[1745490461899,0.7794,1747.6,1747.0,0.75879172]
[1745490465919,0.7794,1747.6,1747.0,1.55249172]
[1745490466416,0.7794,1747.6,1747.0,0.75879172]
[1745490474461,0.7794,1747.6,1747.2,0.75879172]
[1745490475005,0.7794,1747.6,1747.4,0.75879172]
[1745490475620,0.8202,1748.0,1747.4,0.75879172]
[1745490476545,0.8202,1748.0,1747.4,1.53399172]
[1745490477401,0.8202,1748.0,1747.6,0.75879172]
[1745490478134,0.7874,1748.2,1747.7,0.7713]
[1745490478365,0.4162696,1748.4,1748.1,5.7203758]
[1745490478523,0.4162696,1748.4,1748.2,0.57203758]
[1745490478722,0.7874,1748.3,1747.9,0.75879172]
[1745490478981,0.7874,1748.3,1748.1,0.75879172]
[1745490479849,0.4162696,1748.4,1748.1,0.75879172]
[1745490481558,0.4162696,1748.4,1748.1,1.19338647]
[1745490483266,0.4162696,1748.4,1748.1,0.75879172]
[1745490483497,0.4162696,1748.4,1748.1,1.13467089]
[1745490483892,0.4162696,1748.4,1748.1,0.75879172]
[1745490484294,0.4162696,1748.4,1747.8,9.49277554]
[1745490484295,0.8116,1748.3,1747.8,0.43583254]
[1745490485310,0.8116,1748.3,1747.5,0.75879172]
[1745490486573,0.8232,1748.1,1747.3,1.56879172]
[1745490486782,0.8232,1748.1,1747.3,1.99257141]
[1745490487896,0.8232,1748.1,1747.3,7.71545936]
[1745490488077,0.8232,1748.1,1747.5,3.0]
[1745490489811,0.8232,1748.1,1747.5,3.75879172]
[1745490495395,0.8232,1748.1,1747.7,0.75879172]
[1745490495584,0.7602,1748.3,1747.9,0.75879172]
[1745490495889,0.7602,1748.3,1747.7,0.75879172]
[1745490501988,0.7602,1748.3,1747.8,0.7898]
[1745490510415,0.7602,1748.3,1747.8,1.24465917]
[1745490510582,0.7602,1748.3,1747.6,0.7544]
[1745490515008,0.7602,1748.3,1747.4,1.56114594]
[1745490515215,0.7602,1748.3,1747.4,0.7896]
[1745490515810,1.17506132,1748.4,1747.3,1.24397969]
[1745490515811,0.7862,1748.1,1747.3,1.24397969]
[1745490516239,0.7862,1748.1,1747.3,0.8202]
[1745490520546,0.8193,1748.1,1747.3,0.8202]
[1745490521150,0.8193,1748.1,1747.4,3.75879172]
[1745490521433,0.8193,1748.1,1747.5,0.37587917]
[1745490522735,0.8193,1748.1,1747.6,0.7558]
[1745490523309,0.8193,1748.1,1747.5,1.13167917]
[1745490531643,0.8193,1748.1,1747.6,0.75879172]
[1745490537455,0.8193,1748.1,1747.5,0.37587917]
[1745490537656,0.8142,1747.9,1747.2,0.43693902]
[1745490537819,0.8142,1747.9,1747.2,0.4262839]
[1745490538020,0.8142,1747.9,1747.1,0.8259]
[1745490539038,0.8142,1747.9,1747.2,0.75879172]
[1745490540334,0.8142,1747.9,1747.2,1.19191471]
[1745490542746,0.8142,1747.9,1747.1,3.8259]
[1745490543062,0.8142,1747.9,1747.0,0.75879172]
[1745490543663,6.56863406,1748.3,1747.0,0.75879172]
[1745490543664,0.4162696,1748.4,1747.4,5.72278814]
[1745490543824,0.8122,1748.2,1747.8,0.75879172]
[1745490544176,0.8122,1748.2,1747.5,2.16237053]
[1745490544322,0.8122,1748.2,1747.6,0.43511036]
[1745490544524,0.8122,1748.2,1747.4,6.54358129]
[1745490544940,0.8122,1748.2,1747.4,0.8208]
[1745490545164,0.8122,1748.2,1747.4,6.54358374]
[1745490545766,0.8122,1748.2,1747.4,6.54338288]
[1745490545922,0.8122,1748.2,1747.5,0.65433829]
[1745490546262,0.8122,1748.2,1747.5,7.13547265]
[1745490547654,0.8122,1748.2,1747.5,6.80166347]
[1745490548154,0.8122,1748.2,1747.5,12.52391864]
[1745490548357,0.8122,1748.2,1747.5,1.07932083]
[1745490548552,0.8122,1748.2,1747.7,0.75879172]
[1745490549222,0.8164,1748.3,1747.9,0.75879172]
[1745490549839,0.8164,1748.3,1747.6,8.72196798]
[1745490549840,0.8164,1748.3,1747.7,0.75879172]
[1745490550036,0.8164,1748.3,1747.7,1.13467089]
[1745490553039,0.8164,1748.3,1747.7,6.85646326]
[1745490553365,0.8164,1748.3,1747.7,1.13467089]
[1745490556542,0.8164,1748.3,1747.8,4.83]
[1745490557751,0.8164,1748.3,1747.5,1.83811255]
[1745490557962,0.7685,1748.2,1747.5,0.75879172]
[1745490558858,0.7685,1748.2,1747.6,4.83]
[1745490560947,0.7611,1748.2,1747.6,4.83]
[1745490567370,1.3793,1748.0,1747.2,0.75879172]
[1745490567569,1.3793,1748.0,1747.3,4.831]
[1745490567570,0.75879172,1747.9,1747.3,4.831]
[1745490567770,0.8113,1747.8,1747.3,4.831]
[1745490568785,0.8113,1747.8,1747.1,18.879]
[1745490568786,0.8113,1747.6,1747.1,18.879]
[1745490568989,0.8113,1747.6,1747.0,4.917]
[1745490569983,0.7551,1747.4,1747.0,4.917]
[1745490570183,0.7551,1747.4,1747.0,6.16749172]
[1745490584603,1.28856184,1747.4,1747.0,6.16749172]
[1745490585600,0.7551,1747.4,1747.2,0.75879172]
[1745490585901,1.30776184,1747.6,1747.2,0.75879172]
[1745490586103,1.30776184,1747.6,1747.4,0.75879172]
[1745490586266,1.30776184,1747.6,1747.4,5.67779172]
[1745490587006,0.7743,1747.6,1747.4,5.67779172]
[1745490587737,0.7743,1747.6,1747.4,6.24557089]
[1745490594418,0.7839,1747.8,1747.4,6.24557089]
[1745490594820,0.7839,1747.8,1747.4,5.67779172]
[1745490596938,0.53470269,1747.7,1747.4,5.67779172]
[1745490598032,0.7839,1747.8,1747.4,5.67779172]
[1745490600632,0.53488024,1747.7,1747.6,0.75879172]
[1745490601107,0.53488024,1747.7,1747.6,1.56159172]
[1745490601741,0.7535,1748.3,1747.6,4.56159172]
[1745490601927,0.7535,1748.3,1747.8,0.75879172]
[1745490602123,0.7535,1748.3,1747.9,4.858]
[1745490602444,0.7535,1748.3,1747.3,0.8211]
[1745490602662,0.53447136,1748.2,1747.5,0.75879172]
[1745490602840,0.8175,1748.1,1747.6,4.858]
[1745490604167,1.33357136,1748.0,1747.6,4.858]
[1745490604471,0.8131,1747.9,1747.6,4.858]
[1745490605160,0.53447136,1747.8,1747.6,4.858]
[1745490606361,0.53447136,1747.8,1747.6,5.41967917]
[1745490606743,0.8131,1747.9,1747.6,5.41967917]
[1745490607468,0.8131,1747.9,1747.6,4.858]
[1745490608180,0.4162696,1748.4,1747.7,1.58029172]
[1745490608181,1.31602881,1748.3,1747.7,1.58029172]
[1745490608381,0.7815,1748.2,1747.7,1.58029172]
[1745490608684,0.7815,1748.2,1747.6,4.858]
[1745490609670,0.53452881,1748.1,1747.6,4.858]
[1745490609868,0.53452881,1748.1,1747.7,0.4858]
[1745490610130,0.53452881,1748.1,1747.6,4.858]
[1745490610980,0.53452881,1748.0,1747.6,4.858]
[1745490611300,0.7683,1747.9,1747.5,1.56609172]
[1745490611505,0.7683,1747.9,1747.6,4.858]
[1745490611813,0.53452881,1747.8,1747.6,4.858]
[1745490611972,0.8089,1747.7,1747.4,4.858]
[1745490612167,0.8089,1747.7,1747.3,4.858]
[1745490612405,0.8089,1747.7,1747.3,5.3438]
[1745490612700,0.53452881,1747.6,1747.3,5.3438]
[1745490613094,0.53452881,1747.6,1747.3,6.10259172]
[1745490613289,0.53452881,1747.6,1747.4,0.7718]
[1745490613912,0.8089,1747.7,1747.4,0.7718]
[1745490614568,0.8089,1747.7,1747.3,6.10259172]
[1745490614968,0.7848,1748.1,1747.4,0.61025917]
[1745490615170,0.7848,1748.1,1747.3,6.10259172]
[1745490615570,0.7848,1747.9,1747.3,6.10259172]
[1745490616584,0.53519433,1747.8,1747.3,6.10259172]
[1745490618110,0.53519433,1747.7,1747.3,6.10259172]
[1745490619739,0.53519433,1747.6,1747.3,6.10259172]
[1745490620042,0.53519433,1747.6,1747.4,0.61025917]
[1745490620945,0.7848,1747.9,1747.4,0.61025917]
[1745490621118,0.11636655,1747.5,1747.3,6.10259172]
[1745490621530,0.7848,1747.9,1747.3,6.10259172]
[1745490622134,0.65155086,1747.8,1747.3,6.10259172]
[1745490623015,0.53517649,1747.7,1747.3,6.10259172]
[1745490623223,0.7933,1747.6,1747.3,4.858]
[1745490623864,0.11636655,1747.5,1747.4,4.858]
[1745490624522,0.65154304,1747.5,1747.4,4.858]
[1745490625043,0.65154304,1747.5,1747.4,5.6263]
[1745490625414,0.53517649,1747.5,1747.4,5.6263]
[1745490625614,0.53517649,1747.5,1747.4,6.18893]
[1745490625811,0.53517649,1747.5,1747.4,4.858]
[1745490626313,0.7796,1747.7,1747.4,4.858]
[1745490626543,0.11636916,1747.6,1747.4,4.858]
[1745490626855,0.7796,1747.7,1747.4,4.858]
[1745490627213,0.11636916,1747.6,1747.4,4.858]
[1745490627433,0.7796,1747.7,1747.4,4.858]
[1745490627759,0.11636916,1747.6,1747.4,4.858]
[1745490628116,0.7796,1747.7,1747.4,4.858]
[1745490628530,0.8256,1747.5,1746.9,19.7154]
[1745490628775,0.11588729,1747.4,1747.0,4.858]
[1745490629056,0.8256,1747.3,1747.0,4.858]
[1745490629556,0.11526655,1747.2,1747.0,4.858]
[1745490630049,0.8256,1747.3,1747.0,4.858]
[1745490630549,0.11526655,1747.2,1747.0,4.858]
[1745490631166,0.53448041,1747.1,1747.0,4.858]
[1745490631366,0.64974436,1747.1,1747.0,4.858]
[1745490631656,0.53448041,1747.1,1747.0,4.858]
[1745490632222,0.53448041,1747.2,1747.0,4.858]
[1745490632423,0.11526395,1747.1,1747.0,4.858]
[1745490632662,0.53448041,1747.2,1747.0,4.858]
[1745490633140,0.11526395,1747.1,1747.0,4.858]
[1745490633323,0.53448041,1747.2,1747.0,4.858]
[1745490633668,0.11526395,1747.1,1747.0,4.858]
[1745490633966,0.53448041,1747.2,1747.0,4.858]
[1745490634464,0.11526395,1747.1,1747.0,4.858]
[1745490634823,0.53448041,1747.2,1747.0,4.858]
[1745490635152,0.11526395,1747.1,1747.0,4.858]
[1745490635456,0.53448041,1747.2,1747.0,4.858]
[1745490635958,0.11526395,1747.1,1747.0,4.858]
[1745490636253,0.53448041,1747.2,1747.0,4.858]
[1745490636758,0.11526395,1747.1,1747.0,5.6196]
[1745490637128,1.35408041,1747.4,1747.0,4.858]
[1745490637550,0.11526916,1747.3,1747.0,4.858]
[1745490637947,1.35408041,1747.4,1747.0,4.858]
[1745490638227,0.53448041,1747.3,1747.0,4.858]
[1745490638426,0.11526655,1747.2,1747.0,4.858]
[1745490641355,0.8196,1747.4,1747.0,4.858]
[1745490641749,0.11526916,1747.3,1747.0,4.858]
[1745490642137,0.8196,1747.4,1747.0,4.858]
[1745490642660,0.11526916,1747.3,1747.0,4.858]
[1745490643159,0.11526655,1747.2,1747.0,4.858]
[1745490643337,0.53430064,1747.2,1747.0,4.858]
[1745490643749,0.11526395,1747.1,1747.0,4.858]
[1745490644559,0.53430064,1747.3,1747.0,7.2323]
[1745490644757,0.53430064,1747.3,1747.0,4.858]
[1745490645060,0.11276997,1747.2,1747.0,4.858]
[1745490646958,0.8196,1747.4,1747.0,4.858]
[1745490647351,0.11277258,1747.3,1747.0,4.858]
[1745490647732,0.53453339,1747.2,1747.0,4.858]
[1745490647933,0.64730336,1747.2,1747.0,4.858]
[1745490648733,0.11276997,1747.2,1747.0,4.858]
[1745490649845,0.8196,1747.4,1747.0,4.858]
[1745490650043,0.11277258,1747.3,1747.0,4.858]
[1745490650245,0.8196,1747.4,1747.0,4.858]
[1745490650446,0.11277258,1747.3,1747.0,4.858]
[1745490650740,0.8196,1747.4,1747.0,4.858]
[1745490650942,0.53485519,1747.2,1747.1,1.51559172]
[1745490651128,0.53485519,1747.2,1747.1,4.9]
[1745490652334,0.53485519,1747.5,1747.1,4.9]
[1745490652968,0.7821,1747.4,1747.2,4.9]
[1745490653269,0.53485519,1747.3,1747.2,4.9]
[1745490654539,0.53485519,1747.3,1746.9,0.7568]
[1745490654745,0.53485519,1747.3,1747.1,4.9]
[1745490655077,0.8089,1747.2,1746.9,4.9]
[1745490655645,0.53485519,1747.1,1746.9,4.9]
[1745490656373,0.53485519,1747.0,1746.9,4.9]
[1745490656675,0.53485519,1747.0,1746.9,6.1914]
[1745490657741,0.7712,1747.4,1746.9,6.1914]
[1745490658974,0.53596413,1747.3,1746.9,6.1914]
[1745490660089,0.53596413,1747.2,1746.9,6.1914]
[1745490661193,0.53596413,1747.1,1746.9,6.1914]
[1745490661381,0.53596413,1747.1,1746.9,5.7014]
[1745490662566,0.53596413,1747.0,1746.9,4.9]
[1745490663856,0.53596413,1747.0,1746.9,5.687]
[1745490665190,0.7696,1747.5,1746.9,5.687]
[1745490665495,0.7696,1747.5,1747.0,0.8306]
[1745490666975,0.53577077,1747.4,1747.0,0.8306]
[1745490667372,0.53577077,1747.4,1747.1,4.866]
[1745490668411,0.53577077,1747.3,1747.1,4.866]
[1745490669410,0.53577077,1747.2,1747.1,4.866]
[1745490675278,0.53577077,1747.2,1747.1,6.24586]
[1745490675491,0.53577077,1747.2,1747.1,7.00465172]
[1745490676398,3.7934,1747.9,1747.2,0.7959]
[1745490677987,3.7941,1748.0,1747.3,0.75879172]
[1745490678193,3.7941,1748.0,1747.4,0.7826]
[1745490678394,3.7941,1748.0,1747.5,4.865]
[1745490678395,0.37941,1747.9,1747.5,4.865]
[1745490679611,0.37941,1747.9,1747.6,4.865]
[1745490682523,1.13820172,1747.9,1747.4,0.7826]
[1745490682691,0.8247,1747.8,1747.5,4.865]
[1745490684190,0.37941,1747.9,1747.6,0.8047]
[1745490685927,0.37941,1747.9,1747.7,4.865]
[1745490686792,0.8059,1747.8,1747.7,4.865]
[1745490687029,0.8059,1747.8,1747.6,4.865]
[1745490687212,0.8059,1747.8,1747.3,0.7515]
[1745490687213,1.56469172,1747.8,1747.5,4.865]
[1745490687407,1.56469172,1747.8,1747.4,4.865]
[1745490688631,1.56469172,1747.8,1747.1,0.7613]
[1745490688928,1.56469172,1747.8,1747.2,4.865]
[1745490689101,1.56469172,1747.8,1747.3,4.865]
[1745490691730,0.8163,1747.7,1747.3,4.865]
[1745490692102,0.8163,1747.5,1747.3,4.865]
[1745490692429,0.8163,1747.5,1747.1,0.7613]
[1745490692611,0.8163,1747.5,1747.2,4.863]
[1745490694126,0.8245,1747.8,1747.2,5.6361]
[1745490694303,0.8245,1747.8,1747.2,5.3493]
[1745490694504,0.8245,1747.8,1747.3,0.7731]
[1745490696637,0.8245,1747.8,1747.2,1.183072]
[1745490696839,0.8245,1747.8,1747.2,0.696772]
[1745490699659,0.8245,1747.8,1747.3,0.833]
[1745490700640,0.8245,1747.8,1747.2,0.696772]
[1745490700843,0.7834,1747.7,1747.2,0.696772]
[1745490701909,0.7834,1747.7,1747.3,4.863]
[1745490703345,1.23761917,1747.7,1747.3,4.863]
[1745490704622,0.8215,1747.6,1747.3,4.863]
[1745490704936,0.75879172,1747.6,1746.9,0.7676]
[1745490705137,0.75879172,1747.6,1747.0,4.863]
[1745490705138,0.8215,1747.5,1747.0,4.863]
[1745490705715,0.8215,1747.5,1746.9,0.7676]
[1745490705914,0.8215,1747.5,1747.0,4.863]
[1745490706245,0.8215,1747.5,1747.1,4.863]
[1745490712856,0.8185,1747.4,1746.8,0.7804]
[1745490713153,0.8185,1747.3,1746.9,4.863]
[1745490713333,0.8185,1747.2,1746.9,4.863]
[1745490714549,0.75879172,1747.2,1746.9,4.863]
[1745490714752,0.825,1747.1,1746.9,4.863]
[1745490717222,0.725,1747.1,1746.9,4.863]
[1745490717659,0.68766448,1747.1,1746.9,4.863]
[1745490717820,0.68766448,1747.1,1746.5,19.78199483]
[1745490718150,0.68766448,1747.1,1746.8,4.864]
[1745490718658,3.55,1746.9,1746.5,23.86499483]
[1745490719013,6.986,1746.9,1746.5,23.86499483]
[1745490719216,0.75879172,1746.8,1746.5,0.11299483]
[1745490720513,0.7942,1746.7,1746.5,0.11299483]
[1745490721554,1.53249172,1746.6,1746.5,0.11299483]
[1745490722268,0.7737,1746.6,1746.5,0.11299483]
[1745490722874,0.76,1746.8,1746.5,0.11299483]
[1745490724332,0.76,1746.8,1746.3,0.7874]
[1745490725121,0.76,1746.8,1746.3,1.35104]
[1745490727260,0.7725,1747.0,1746.3,1.35104]
[1745490727446,0.7725,1747.0,1746.4,0.783]
[1745490730381,0.75879172,1746.9,1746.4,0.783]
[1745490730541,0.7793,1746.8,1746.4,0.783]
[1745490730869,0.7793,1746.8,1746.4,4.849]
[1745490734988,0.7793,1746.8,1746.4,5.6036]
[1745490735834,0.7793,1746.8,1746.4,4.849]
[1745490736373,0.7756,1746.6,1746.2,4.85]
[1745490736747,0.7756,1746.6,1745.9,0.8116]
[1745490736936,0.7756,1746.6,1746.0,4.85]
[1745490737137,3.7756,1746.6,1746.0,4.85]
[1745490737332,0.37756,1746.5,1746.0,4.85]
[1745490740773,0.7674,1746.4,1746.0,4.85]
[1745490743377,0.7674,1746.4,1745.9,0.8116]
[1745490743557,0.75879172,1746.3,1745.8,0.8086]
[1745490743760,0.7788,1746.2,1745.9,4.85]
[1745490743972,0.7788,1746.2,1745.6,19.6996]
[1745490744177,0.7788,1746.2,1745.7,4.85]
[1745490747983,0.7821,1746.3,1745.8,0.7792]
[1745490748157,0.7821,1746.6,1745.8,0.7792]
[1745490749071,0.75879172,1746.5,1745.8,0.7792]
[1745490749253,0.7689,1746.4,1745.8,0.7792]
[1745490749590,0.7689,1746.4,1745.8,0.56292]
[1745490750073,0.7689,1746.4,1745.9,0.7942]
[1745490750276,0.7689,1746.4,1745.9,1.55299172]
[1745490750480,0.7689,1746.4,1746.0,4.851]
[1745490764930,0.8118,1746.6,1746.1,6.39479172]
[1745490765134,0.8118,1746.6,1746.2,5.48547917]
[1745490767229,0.8118,1746.6,1746.2,4.846]
[1745490769640,0.8107,1746.6,1746.2,4.846]
[1745490771611,0.75879172,1746.6,1746.2,4.846]
[1745490771811,0.8177,1746.5,1746.2,4.846]
[1745490782126,0.8177,1746.5,1746.2,5.607]
[1745490782456,3.8089,1746.7,1746.2,6.1677]
[1745490782648,3.8089,1746.7,1746.2,5.607]
[1745490785550,3.0,1746.7,1746.3,0.8229]
[1745490785750,0.8096,1746.9,1746.3,0.8229]
[1745490791269,0.8096,1746.9,1746.2,4.846]
[1745490791270,0.7989,1746.7,1746.2,4.846]
[1745490791476,0.7989,1746.7,1746.1,0.7525]
[1745490791727,0.7989,1746.7,1746.2,4.82]
[1745490791903,0.7989,1746.7,1746.1,0.7525]
[1745490792211,0.7989,1746.7,1746.2,4.82]
[1745490792579,0.75879172,1746.6,1746.2,4.82]
[1745490793112,0.7794,1746.5,1746.2,4.82]
[1745490794418,0.7794,1746.5,1746.2,5.38091]
[1745490794984,0.7766,1746.7,1746.2,5.38091]
[1745490795515,0.7766,1746.7,1746.3,0.77]
[1745490797409,0.7766,1746.7,1746.4,4.82]
[1745490807578,0.7879,1746.9,1746.4,4.82]
[1745490808366,0.7879,1746.9,1746.4,5.379]
[1745490810050,0.8002,1747.1,1746.6,0.7872]
[1745490810507,1.55899172,1747.1,1746.6,0.7872]
[1745490812681,0.8002,1747.1,1746.6,0.7872]
[1745490813382,3.75879172,1747.3,1746.7,0.7579]
[1745490813383,3.8012,1747.3,1746.7,0.7579]
[1745490813581,3.8012,1747.3,1746.8,4.82]
[1745490813885,3.8012,1747.3,1746.8,5.37779]
[1745490814085,0.8012,1747.3,1746.8,5.37779]
[1745490814252,3.2224,1747.5,1746.9,0.8285]
[1745490814453,2.4,1747.5,1747.0,0.8017]
[1745490814673,2.4,1747.5,1747.1,0.8017]
[1745490814882,1.25329207,1747.8,1747.2,4.821]
[1745490815046,1.25329207,1747.8,1747.2,5.38327]
[1745490815246,0.8318,1747.8,1747.2,5.38327]
[1745490815747,0.8318,1747.8,1747.3,0.7572]
[1745490815946,1.56709172,1748.0,1747.3,0.7572]
[1745490817670,1.56709172,1748.1,1747.3,0.7572]
[1745490820247,0.8083,1748.1,1747.3,0.7572]
[1745490820453,0.8083,1748.1,1747.2,11.54170592]
[1745490820454,0.8083,1748.1,1747.5,0.8258]
[1745490820675,0.8083,1748.1,1747.6,4.819]
[1745490820874,0.8083,1748.1,1747.7,0.4819]
[1745490821477,1.56709172,1748.1,1747.7,0.4819]
[1745490823603,1.56709172,1748.1,1747.6,4.819]
[1745490825603,1.56709172,1748.1,1747.5,0.8258]
[1745490825771,0.42355666,1748.3,1747.0,19.65279172]
[1745490825772,0.75879172,1747.7,1747.4,4.818]
[1745490826697,0.7894,1747.6,1747.4,4.818]
[1745490827065,1.54819172,1747.7,1747.4,4.818]
[1745490829712,3.0,1747.6,1747.4,4.818]
[1745490830303,1.54819172,1747.7,1747.4,4.818]
[1745490831233,1.54819172,1747.7,1747.4,5.5835]
[1745490831434,2.00301089,1747.7,1747.4,4.818]
[1745490834718,2.00301089,1747.7,1747.1,0.7655]
[1745490835244,2.00301089,1747.7,1747.2,4.818]
[1745490835768,2.00301089,1747.7,1747.3,4.818]
[1745490836629,2.00301089,1747.7,1747.1,0.7655]
[1745490836834,2.00301089,1747.7,1747.2,4.819]
[1745490837963,1.24421917,1747.7,1747.2,4.819]
[1745490845365,0.7696,1747.6,1747.2,4.819]
[1745490846370,0.7696,1747.6,1747.1,0.7655]
[1745490846688,0.8254,1747.2,1746.9,4.832]
[1745490847054,0.53496786,1747.1,1746.9,4.832]
[1745490847898,1.29375958,1747.1,1746.8,18.886]
[1745490848050,1.33586786,1747.0,1746.8,23.718]
[1745490848273,0.75879172,1746.9,1746.8,4.832]
[1745490848667,0.75879172,1746.9,1746.4,0.7638]
[1745490848872,0.75879172,1746.9,1746.5,4.832]
[1745490849099,0.53496786,1746.8,1746.5,5.39158]
[1745490850008,0.53496786,1746.7,1746.5,5.39158]
[1745490851013,0.53496786,1746.9,1746.5,5.39158]
[1745490851310,0.53496786,1746.9,1746.6,0.8063]
[1745490851687,0.53496786,1746.9,1746.6,1.426088]
[1745490851886,0.53496786,1746.8,1746.4,0.8064]
[1745490852213,0.53496786,1746.8,1746.5,4.833]
[1745490852413,0.53496786,1746.8,1746.1,18.886]
[1745490852414,0.7785,1746.7,1746.2,0.8064]
[1745490852787,0.75879172,1746.3,1746.0,4.833]
[1745490853186,0.53496786,1746.2,1746.0,4.833]
[1745490854381,0.53496786,1746.3,1746.0,4.833]
[1745490855283,1.31346786,1746.4,1746.0,4.833]
[1745490856218,3.75879172,1746.3,1745.7,0.8044]
[1745490856524,3.75879172,1746.3,1745.8,4.834]
[1745490856816,0.37587917,1746.2,1745.8,4.834]
[1745490858319,0.817,1746.1,1745.7,0.8044]
[1745490858493,0.817,1746.1,1745.8,4.834]
[1745490859310,0.8279,1746.2,1745.8,4.834]
[1745490859919,0.8279,1746.2,1745.8,5.3174]
[1745490860115,0.7876,1746.4,1745.9,0.8277]
[1745490861719,0.7882,1746.6,1745.9,0.8277]
[1745490861935,0.53496786,1746.7,1745.9,0.8277]
[1745490862484,1.55039172,1746.8,1745.9,0.8277]
[1745490864513,2.10279516,1746.8,1745.9,0.8277]
[1745490864828,1.55039172,1746.8,1745.9,0.8277]
[1745490866733,2.08535958,1746.8,1745.9,0.8277]
[1745490870458,0.53496786,1746.7,1745.9,0.8277]
[1745490872559,0.53496786,1746.6,1745.9,0.8277]
[1745490874097,0.53496786,1746.5,1745.9,0.8277]
[1745490875406,0.53496786,1746.4,1745.9,0.8277]
[1745490876079,1.55039172,1746.8,1745.9,0.8277]
[1745490877308,0.53490198,1746.7,1745.9,0.8277]
[1745490878187,0.53490198,1746.6,1746.0,0.832]